[Event "Titled Tuesday Blitz December 27 Early 2022"]
[White "Albertini, Luca"]
[Black "Poeta, Caio Medeiros"]
[WhiteFideId "847038"]
[BlackFideId "2142660"]
[WhiteElo "2084"]
[BlackElo "2088"]
[Result "1/2-1/2"]
[Round "10"]
[TimeControl "180+2"]
[Date "2022.12.27"]
[WhiteClock "0:00:10"]
[BlackClock "0:00:08"]

1. e4 {[%clk 0:03:00]}  c6 {[%clk 0:02:59]} 2. d4 {[%clk 0:03:00]}  d5 {[%clk 0:03:00]} 3. e5 {[%clk 0:03:01]}  c5 {[%clk 0:03:00]} 4. dxc5 {[%clk 0:03:01]}  Nc6 {[%clk 0:03:00]} 5. Bb5 {[%clk 0:02:55]}  e6 {[%clk 0:03:00]} 6. Be3 {[%clk 0:02:53]}  Ne7 {[%clk 0:03:00]} 7. f4 {[%clk 0:02:52]}  Nf5 {[%clk 0:02:58]} 8. Bf2 {[%clk 0:02:51]}  Bd7 {[%clk 0:02:59]} 9. Nf3 {[%clk 0:02:51]}  Nxe5 {[%clk 0:02:55]} 10. fxe5 {[%clk 0:02:37]}  Bxb5 {[%clk 0:02:54]} 11. a4 {[%clk 0:02:38]}  Ba6 {[%clk 0:02:34]} 12. b4 {[%clk 0:02:38]}  Bc4 {[%clk 0:02:34]} 13. Nbd2 {[%clk 0:02:35]}  b5 {[%clk 0:02:29]} 14. Nxc4 {[%clk 0:02:27]}  bxc4 {[%clk 0:02:25]} 15. O-O {[%clk 0:02:26]}  Qc7 {[%clk 0:02:11]} 16. c3 {[%clk 0:02:24]}  Be7 {[%clk 0:02:09]} 17. Bd4 {[%clk 0:02:16]}  O-O {[%clk 0:02:08]} 18. g4 {[%clk 0:02:15]}  Nh4 {[%clk 0:01:57]} 19. Nxh4 {[%clk 0:02:07]}  Bxh4 {[%clk 0:01:58]} 20. b5 {[%clk 0:02:07]}  Be7 {[%clk 0:01:49]} 21. c6 {[%clk 0:02:06]}  a6 {[%clk 0:01:44]} 22. Qf3 {[%clk 0:01:57]}  Rab8 {[%clk 0:01:21]} 23. Rfb1 {[%clk 0:01:39]}  f6 {[%clk 0:01:12]} 24. Qg3 {[%clk 0:01:30]}  f5 {[%clk 0:01:07]} 25. g5 {[%clk 0:01:18]}  f4 {[%clk 0:01:04]} 26. Qg4 {[%clk 0:01:16]}  Rf5 {[%clk 0:01:00]} 27. h4 {[%clk 0:01:10]}  Rbf8 {[%clk 0:00:30]} 28. b6 {[%clk 0:00:53]}  Qxc6 {[%clk 0:00:30]} 29. b7 {[%clk 0:00:53]}  Qc7 {[%clk 0:00:18]} 30. Rb6 {[%clk 0:00:46]}  Bc5 {[%clk 0:00:18]} 31. b8=Q {[%clk 0:00:20]}  Bxd4+ {[%clk 0:00:17]} 32. cxd4 {[%clk 0:00:18]}  Rxb8 {[%clk 0:00:18]} 33. Rxe6 {[%clk 0:00:18]}  Rff8 {[%clk 0:00:15]} 34. Rd6 {[%clk 0:00:18]}  c3 {[%clk 0:00:13]} 35. Qe6+ {[%clk 0:00:16]}  Kh8 {[%clk 0:00:13]} 36. Rc1 {[%clk 0:00:13]}  Qa7 {[%clk 0:00:10]} 37. Qxd5 {[%clk 0:00:13]}  Rbc8 {[%clk 0:00:07]} 38. Kf1 {[%clk 0:00:11]}  Qb8 {[%clk 0:00:05]} 39. Qa2 {[%clk 0:00:09]}  f3 {[%clk 0:00:05]} 40. Qc2 {[%clk 0:00:09]}  Qb4 {[%clk 0:00:04]} 41. h5 {[%clk 0:00:07]}  Qc4+ {[%clk 0:00:05]} 42. Kf2 {[%clk 0:00:07]}  Qf7 {[%clk 0:00:05]} 43. h6 {[%clk 0:00:07]}  Qh5 {[%clk 0:00:05]} 44. Rg1 {[%clk 0:00:06]}  Qh2+ {[%clk 0:00:04]} 45. Ke3 {[%clk 0:00:06]}  Qxc2 {[%clk 0:00:04]} 46. g6 {[%clk 0:00:06]}  Qd2+ {[%clk 0:00:03]} 47. Ke4 {[%clk 0:00:06]}  hxg6 {[%clk 0:00:03]} 48. hxg7+ {[%clk 0:00:06]}  Kg8 {[%clk 0:00:01]} 49. Rgxg6 {[%clk 0:00:06]}  Rcd8 {[%clk 0:00:01]} 50. gxf8=Q+ {[%clk 0:00:05]}  Kxf8 {[%clk 0:00:02]} 51. Rdf6+ {[%clk 0:00:06]}  Ke7 {[%clk 0:00:03]} 52. Re6+ {[%clk 0:00:06]}  Kd7 {[%clk 0:00:04]} 53. Rd6+ {[%clk 0:00:07]}  Kc7 {[%clk 0:00:04]} 54. Rg7+ {[%clk 0:00:07]}  Kc8 {[%clk 0:00:04]} 55. Rc6+ {[%clk 0:00:07]}  Kb8 {[%clk 0:00:05]} 56. Rb6+ {[%clk 0:00:08]}  Ka8 {[%clk 0:00:06]} 57. Rxa6+ {[%clk 0:00:08]}  Kb8 {[%clk 0:00:06]} 58. Rb6+ {[%clk 0:00:09]}  Ka8 {[%clk 0:00:07]} 59. Ra6+ {[%clk 0:00:09]}  Kb8 {[%clk 0:00:07]} 60. Rb6+ {[%clk 0:00:10]}  Ka8 {[%clk 0:00:08]} 61. Ra6+ {[%clk 0:00:10]} 1/2-1/2


[Site "https://www.chess.com"]

[Event "Titled Tuesday Blitz December 27 Early 2022"]
[White "Andreev, Konstantin"]
[Black "Vasques, Antonio Pedro Freixial"]
[WhiteFideId "24239305"]
[BlackFideId "1908332"]
[WhiteElo "2195"]
[BlackElo "2214"]
[Result "0-1"]
[Round "10"]
[TimeControl "180+2"]
[Date "2022.12.27"]
[WhiteClock "0:00:13"]
[BlackClock "0:00:35"]

1. e4 {[%clk 0:02:57]}  c5 {[%clk 0:02:58]} 2. Nf3 {[%clk 0:02:56]}  Nc6 {[%clk 0:02:57]} 3. Nc3 {[%clk 0:02:54]}  Nf6 {[%clk 0:02:53]} 4. d4 {[%clk 0:02:54]}  cxd4 {[%clk 0:02:52]} 5. Nxd4 {[%clk 0:02:54]}  e6 {[%clk 0:02:50]} 6. Ndb5 {[%clk 0:02:52]}  Bb4 {[%clk 0:02:51]} 7. a3 {[%clk 0:02:50]}  Bxc3+ {[%clk 0:02:51]} 8. Nxc3 {[%clk 0:02:51]}  d5 {[%clk 0:02:50]} 9. Bd3 {[%clk 0:02:51]}  dxe4 {[%clk 0:02:49]} 10. Nxe4 {[%clk 0:02:52]}  Nxe4 {[%clk 0:02:50]} 11. Bxe4 {[%clk 0:02:53]}  Qxd1+ {[%clk 0:02:50]} 12. Kxd1 {[%clk 0:02:54]}  Bd7 {[%clk 0:02:49]} 13. Be3 {[%clk 0:02:53]}  f6 {[%clk 0:02:47]} 14. Kc1 {[%clk 0:02:51]}  Kf7 {[%clk 0:02:47]} 15. a4 {[%clk 0:02:51]}  Rac8 {[%clk 0:02:44]} 16. Ra3 {[%clk 0:02:49]}  b6 {[%clk 0:02:38]} 17. Kb1 {[%clk 0:02:46]}  Nb4 {[%clk 0:02:30]} 18. Rd1 {[%clk 0:02:29]}  Rhd8 {[%clk 0:02:25]} 19. c3 {[%clk 0:02:26]}  Bc6 {[%clk 0:02:13]} 20. Bf3 {[%clk 0:01:32]}  Bxf3 {[%clk 0:01:57]} 21. Rxd8 {[%clk 0:01:30]}  Be4+ {[%clk 0:01:57]} 22. Kc1 {[%clk 0:01:29]}  Rxd8 {[%clk 0:01:45]} 23. cxb4 {[%clk 0:01:28]}  Bxg2 {[%clk 0:01:43]} 24. a5 {[%clk 0:01:26]}  Rc8+ {[%clk 0:01:31]} 25. Kd2 {[%clk 0:01:24]}  Be4 {[%clk 0:01:28]} 26. axb6 {[%clk 0:01:15]}  Rc2+ {[%clk 0:01:24]} 27. Kd1 {[%clk 0:01:13]}  axb6 {[%clk 0:01:25]} 28. b3 {[%clk 0:01:07]}  b5 {[%clk 0:01:22]} 29. Ra5 {[%clk 0:01:02]}  Bd3 {[%clk 0:01:01]} 30. Rxb5 {[%clk 0:00:53]}  Bxb5 {[%clk 0:01:01]} 31. Kxc2 {[%clk 0:00:52]}  e5 {[%clk 0:01:02]} 32. Bc5 {[%clk 0:00:51]}  Ke6 {[%clk 0:01:03]} 33. Kd2 {[%clk 0:00:47]}  g5 {[%clk 0:01:01]} 34. Ke3 {[%clk 0:00:46]}  f5 {[%clk 0:01:02]} 35. Bf8 {[%clk 0:00:42]}  g4 {[%clk 0:01:00]} 36. f3 {[%clk 0:00:38]}  h5 {[%clk 0:00:52]} 37. Bg7 {[%clk 0:00:34]}  Kd5 {[%clk 0:00:51]} 38. Bf6 {[%clk 0:00:30]}  f4+ {[%clk 0:00:43]} 39. Kf2 {[%clk 0:00:30]}  Kd4 {[%clk 0:00:42]} 40. Bg7 {[%clk 0:00:29]}  Bc6 {[%clk 0:00:38]} 41. fxg4 {[%clk 0:00:19]}  hxg4 {[%clk 0:00:39]} 42. Bf6 {[%clk 0:00:19]}  Ke4 {[%clk 0:00:39]} 43. Bg7 {[%clk 0:00:19]}  Kf5 {[%clk 0:00:39]} 44. Bf8 {[%clk 0:00:17]}  e4 {[%clk 0:00:39]} 45. Bd6 {[%clk 0:00:15]}  e3+ {[%clk 0:00:38]} 46. Ke1 {[%clk 0:00:13]}  Ke4 {[%clk 0:00:38]} 47. Bc7 {[%clk 0:00:11]}  Bb5 {[%clk 0:00:37]} 48. Bd6 {[%clk 0:00:11]}  f3 {[%clk 0:00:34]} 49. Bg3 {[%clk 0:00:11]}  Kd3 {[%clk 0:00:34]} 50. Bh4 {[%clk 0:00:09]}  Kc3 {[%clk 0:00:33]} 51. Bg3 {[%clk 0:00:09]}  Kxb4 {[%clk 0:00:33]} 52. Bh4 {[%clk 0:00:10]}  Kxb3 {[%clk 0:00:33]} 53. Bg3 {[%clk 0:00:10]}  Kc2 {[%clk 0:00:34]} 54. Bh4 {[%clk 0:00:11]}  Kd3 {[%clk 0:00:34]} 55. Bg3 {[%clk 0:00:11]}  Ke4 {[%clk 0:00:34]} 56. Bh4 {[%clk 0:00:12]}  Kf5 {[%clk 0:00:34]} 57. Bg3 {[%clk 0:00:13]}  Kg5 {[%clk 0:00:35]} 0-1


[Site "https://www.chess.com"]

[Event "Titled Tuesday Blitz December 27 Early 2022"]
[White "Aravindh, Chithambaram VR."]
[Black "Balakrishnan, Praveen"]
[WhiteFideId "5072786"]
[BlackFideId "2064871"]
[WhiteElo "2633"]
[BlackElo "2529"]
[Result "0-1"]
[Round "10"]
[TimeControl "180+2"]
[Date "2022.12.27"]
[WhiteClock "0:00:18"]
[BlackClock "0:00:16"]

1. b3 {[%clk 0:02:59]}  e5 {[%clk 0:02:56]} 2. Bb2 {[%clk 0:02:59]}  Nc6 {[%clk 0:02:56]} 3. c4 {[%clk 0:02:59]}  Nf6 {[%clk 0:02:53]} 4. Nf3 {[%clk 0:03:00]}  e4 {[%clk 0:02:48]} 5. Nd4 {[%clk 0:03:00]}  Bc5 {[%clk 0:02:48]} 6. Nf5 {[%clk 0:02:58]}  O-O {[%clk 0:02:46]} 7. e3 {[%clk 0:02:56]}  d5 {[%clk 0:02:46]} 8. cxd5 {[%clk 0:02:56]}  Qxd5 {[%clk 0:02:34]} 9. g4 {[%clk 0:02:40]}  Bxf5 {[%clk 0:02:22]} 10. Nc3 {[%clk 0:02:40]}  Qd7 {[%clk 0:02:14]} 11. gxf5 {[%clk 0:02:40]}  Ne5 {[%clk 0:02:15]} 12. Be2 {[%clk 0:01:52]}  Qxf5 {[%clk 0:02:14]} 13. Rg1 {[%clk 0:01:51]}  Rad8 {[%clk 0:02:06]} 14. Qc2 {[%clk 0:01:48]}  Nd3+ {[%clk 0:01:50]} 15. Bxd3 {[%clk 0:01:48]}  exd3 {[%clk 0:01:51]} 16. Qd1 {[%clk 0:01:47]}  Rfe8 {[%clk 0:01:50]} 17. Rc1 {[%clk 0:01:40]}  Re6 {[%clk 0:01:32]} 18. Na4 {[%clk 0:01:24]}  Ne4 {[%clk 0:01:16]} 19. Rxg7+ {[%clk 0:00:58]}  Kf8 {[%clk 0:01:16]} 20. f3 {[%clk 0:00:58]}  Bxe3 {[%clk 0:01:01]} 21. Rxc7 {[%clk 0:00:57]}  Bxd2+ {[%clk 0:00:42]} 22. Kf1 {[%clk 0:00:56]}  Ng5 {[%clk 0:00:22]} 23. Qxd2 {[%clk 0:00:18]}  Qxf3+ {[%clk 0:00:18]} 24. Qf2 {[%clk 0:00:18]}  Qh1+ {[%clk 0:00:18]} 25. Qg1 {[%clk 0:00:17]}  Re1+ {[%clk 0:00:16]} 26. Kxe1 {[%clk 0:00:17]}  Qxg1+ {[%clk 0:00:16]} 27. Kd2 {[%clk 0:00:18]}  Ne4# {[%clk 0:00:16]} 0-1


[Site "https://www.chess.com"]

[Event "Titled Tuesday Blitz December 27 Early 2022"]
[White "Baskakov, Egor"]
[Black "Bilych, Olexiy"]
[WhiteFideId "24197866"]
[BlackFideId "14156504"]
[WhiteElo "2215"]
[BlackElo "2441"]
[Result "1-0"]
[Round "10"]
[TimeControl "180+2"]
[Date "2022.12.27"]
[WhiteClock "0:01:49"]
[BlackClock "0:00:53"]

1. e4 {[%clk 0:03:00]}  c5 {[%clk 0:02:59]} 2. Nf3 {[%clk 0:03:00]}  Nc6 {[%clk 0:02:59]} 3. Nc3 {[%clk 0:03:00]}  g6 {[%clk 0:02:57]} 4. d4 {[%clk 0:03:00]}  cxd4 {[%clk 0:02:58]} 5. Nxd4 {[%clk 0:03:01]}  Bg7 {[%clk 0:02:59]} 6. Nde2 {[%clk 0:03:01]}  d6 {[%clk 0:02:51]} 7. g3 {[%clk 0:03:01]}  Nf6 {[%clk 0:02:47]} 8. Bg2 {[%clk 0:03:02]}  O-O {[%clk 0:02:48]} 9. h3 {[%clk 0:03:02]}  Rb8 {[%clk 0:02:44]} 10. a4 {[%clk 0:03:00]}  a6 {[%clk 0:02:44]} 11. O-O {[%clk 0:03:00]}  b5 {[%clk 0:02:43]} 12. axb5 {[%clk 0:03:01]}  axb5 {[%clk 0:02:44]} 13. Be3 {[%clk 0:03:02]}  b4 {[%clk 0:02:38]} 14. Nd5 {[%clk 0:03:02]}  Bb7 {[%clk 0:02:38]} 15. b3 {[%clk 0:03:00]}  e6 {[%clk 0:02:15]} 16. Nxf6+ {[%clk 0:03:00]}  Bxf6 {[%clk 0:02:16]} 17. Nd4 {[%clk 0:02:56]}  Qd7 {[%clk 0:01:34]} 18. Nxc6 {[%clk 0:02:50]}  Qxc6 {[%clk 0:01:30]} 19. Ra4 {[%clk 0:02:36]}  Ba6 {[%clk 0:01:21]} 20. e5 {[%clk 0:02:32]}  d5 {[%clk 0:01:03]} 21. Rxa6 {[%clk 0:02:27]}  Qxa6 {[%clk 0:01:03]} 22. exf6 {[%clk 0:02:28]}  e5 {[%clk 0:01:03]} 23. Bg5 {[%clk 0:02:06]}  Rfd8 {[%clk 0:00:59]} 24. Qg4 {[%clk 0:02:00]}  h6 {[%clk 0:00:57]} 25. Bxh6 {[%clk 0:02:00]}  Qxf6 {[%clk 0:00:57]} 26. Bg5 {[%clk 0:02:00]}  Qe6 {[%clk 0:00:56]} 27. Bxd8 {[%clk 0:01:59]}  Rxd8 {[%clk 0:00:56]} 28. Qxb4 {[%clk 0:01:58]}  Rc8 {[%clk 0:00:53]} 29. c3 {[%clk 0:01:49]}  Qc6 {[%clk 0:00:52]} 30. c4 {[%clk 0:01:49]}  e4 {[%clk 0:00:52]} 31. cxd5 {[%clk 0:01:49]}  Qxd5 {[%clk 0:00:53]} 32. Bxe4 {[%clk 0:01:49]} 1-0


[Site "https://www.chess.com"]

[Event "Titled Tuesday Blitz December 27 Early 2022"]
[White "Berezin, Viktor"]
[Black "Dimitrov, Atanas"]
[WhiteFideId "14107872"]
[BlackFideId "2901315"]
[WhiteElo "2307"]
[BlackElo "2269"]
[Result "1-0"]
[Round "10"]
[TimeControl "180+2"]
[Date "2022.12.27"]
[WhiteClock "0:00:15"]
[BlackClock "0:00:18"]

1. d4 {[%clk 0:03:00]}  Nf6 {[%clk 0:03:00]} 2. Nf3 {[%clk 0:02:59]}  g6 {[%clk 0:03:00]} 3. g3 {[%clk 0:02:59]}  Bg7 {[%clk 0:03:00]} 4. Bg2 {[%clk 0:03:00]}  O-O {[%clk 0:03:01]} 5. O-O {[%clk 0:03:01]}  d5 {[%clk 0:03:01]} 6. c4 {[%clk 0:03:01]}  c6 {[%clk 0:02:56]} 7. cxd5 {[%clk 0:03:00]}  cxd5 {[%clk 0:02:57]} 8. Nc3 {[%clk 0:03:00]}  Nc6 {[%clk 0:02:58]} 9. Ne5 {[%clk 0:03:00]}  Be6 {[%clk 0:02:52]} 10. Nxc6 {[%clk 0:02:57]}  bxc6 {[%clk 0:02:53]} 11. b3 {[%clk 0:02:58]}  Rc8 {[%clk 0:02:53]} 12. Na4 {[%clk 0:02:58]}  Nd7 {[%clk 0:02:52]} 13. Ba3 {[%clk 0:02:51]}  f6 {[%clk 0:02:47]} 14. Rc1 {[%clk 0:02:51]}  Re8 {[%clk 0:02:45]} 15. Qd3 {[%clk 0:02:45]}  Bf7 {[%clk 0:02:42]} 16. Qa6 {[%clk 0:02:43]}  Qc7 {[%clk 0:02:42]} 17. e4 {[%clk 0:02:39]}  e6 {[%clk 0:02:37]} 18. Rfe1 {[%clk 0:02:37]}  Nb8 {[%clk 0:02:34]} 19. Qd3 {[%clk 0:02:35]}  Qd8 {[%clk 0:02:18]} 20. h4 {[%clk 0:02:24]}  dxe4 {[%clk 0:02:16]} 21. Qxe4 {[%clk 0:01:55]}  f5 {[%clk 0:02:16]} 22. Qe2 {[%clk 0:01:55]}  Bxd4 {[%clk 0:02:07]} 23. Red1 {[%clk 0:01:53]}  e5 {[%clk 0:02:05]} 24. h5 {[%clk 0:01:48]}  Qf6 {[%clk 0:02:00]} 25. h6 {[%clk 0:01:42]}  Nd7 {[%clk 0:01:50]} 26. Nc5 {[%clk 0:01:27]}  Nxc5 {[%clk 0:01:45]} 27. Bxc5 {[%clk 0:01:27]}  Bxc5 {[%clk 0:01:35]} 28. Rxc5 {[%clk 0:01:28]}  e4 {[%clk 0:01:36]} 29. Qa6 {[%clk 0:01:24]}  Rc7 {[%clk 0:01:34]} 30. Bf1 {[%clk 0:01:19]}  Rec8 {[%clk 0:01:22]} 31. Bc4 {[%clk 0:01:18]}  f4 {[%clk 0:01:11]} 32. Bxf7+ {[%clk 0:01:16]}  Qxf7 {[%clk 0:01:12]} 33. Qc4 {[%clk 0:00:39]}  fxg3 {[%clk 0:01:05]} 34. fxg3 {[%clk 0:00:36]}  e3 {[%clk 0:00:59]} 35. Re5 {[%clk 0:00:20]}  Qxc4 {[%clk 0:00:42]} 36. bxc4 {[%clk 0:00:21]}  Rf8 {[%clk 0:00:34]} 37. Rf1 {[%clk 0:00:19]}  Rxf1+ {[%clk 0:00:26]} 38. Kxf1 {[%clk 0:00:18]}  Kf7 {[%clk 0:00:27]} 39. Rxe3 {[%clk 0:00:16]}  Kf6 {[%clk 0:00:26]} 40. Kg2 {[%clk 0:00:06]}  Kg5 {[%clk 0:00:27]} 41. Re5+ {[%clk 0:00:04]}  Kxh6 {[%clk 0:00:27]} 42. Kf3 {[%clk 0:00:04]}  Kg7 {[%clk 0:00:27]} 43. Ke4 {[%clk 0:00:05]}  Kf6 {[%clk 0:00:27]} 44. Ra5 {[%clk 0:00:05]}  Ke6 {[%clk 0:00:25]} 45. Kf4 {[%clk 0:00:03]}  h6 {[%clk 0:00:24]} 46. Ke4 {[%clk 0:00:02]}  Kd6 {[%clk 0:00:23]} 47. g4 {[%clk 0:00:03]}  Re7+ {[%clk 0:00:20]} 48. Kd4 {[%clk 0:00:04]}  Rf7 {[%clk 0:00:20]} 49. c5+ {[%clk 0:00:03]}  Ke6 {[%clk 0:00:20]} 50. Ke4 {[%clk 0:00:03]}  g5 {[%clk 0:00:20]} 51. Ra6 {[%clk 0:00:04]}  Rf4+ {[%clk 0:00:20]} 52. Ke3 {[%clk 0:00:04]}  Kd5 {[%clk 0:00:21]} 53. Rxa7 {[%clk 0:00:05]}  Kxc5 {[%clk 0:00:19]} 54. Rh7 {[%clk 0:00:05]}  Rxg4 {[%clk 0:00:17]} 55. Rxh6 {[%clk 0:00:04]}  Rg2 {[%clk 0:00:17]} 56. Rg6 {[%clk 0:00:04]}  Kb6 {[%clk 0:00:11]} 57. Kf3 {[%clk 0:00:04]}  Rg1 {[%clk 0:00:11]} 58. Kf2 {[%clk 0:00:05]}  Rg4 {[%clk 0:00:08]} 59. Kf3 {[%clk 0:00:05]}  Rf4+ {[%clk 0:00:09]} 60. Ke3 {[%clk 0:00:03]}  Rf5 {[%clk 0:00:09]} 61. Ke4 {[%clk 0:00:03]}  Ra5 {[%clk 0:00:09]} 62. a3 {[%clk 0:00:03]}  Ra4+ {[%clk 0:00:07]} 63. Kf5 {[%clk 0:00:02]}  Rxa3 {[%clk 0:00:08]} 64. Kg4 {[%clk 0:00:02]}  Ra5 {[%clk 0:00:06]} 65. Kf3 {[%clk 0:00:02]}  Rd5 {[%clk 0:00:06]} 66. Ke4 {[%clk 0:00:02]}  Kc5 {[%clk 0:00:07]} 67. Rf6 {[%clk 0:00:02]}  Kb5 {[%clk 0:00:06]} 68. Rf1 {[%clk 0:00:02]}  Rd2 {[%clk 0:00:05]} 69. Rb1+ {[%clk 0:00:02]}  Kc5 {[%clk 0:00:05]} 70. Rc1+ {[%clk 0:00:02]}  Kd6 {[%clk 0:00:06]} 71. Rg1 {[%clk 0:00:03]}  Rd5 {[%clk 0:00:06]} 72. Rc1 {[%clk 0:00:03]}  Re5+ {[%clk 0:00:07]} 73. Kd4 {[%clk 0:00:03]}  Rd5+ {[%clk 0:00:08]} 74. Ke4 {[%clk 0:00:04]}  c5 {[%clk 0:00:08]} 75. Rg1 {[%clk 0:00:04]}  Re5+ {[%clk 0:00:09]} 76. Kd3 {[%clk 0:00:04]}  Kd5 {[%clk 0:00:09]} 77. Ra1 {[%clk 0:00:04]}  c4+ {[%clk 0:00:09]} 78. Kd2 {[%clk 0:00:04]}  Kd4 {[%clk 0:00:09]} 79. Ra8 {[%clk 0:00:04]}  c3+ {[%clk 0:00:09]} 80. Kd1 {[%clk 0:00:05]}  Rd5 {[%clk 0:00:06]} 81. Kc2 {[%clk 0:00:04]}  g4 {[%clk 0:00:05]} 82. Rg8 {[%clk 0:00:05]}  Ke3 {[%clk 0:00:02]} 83. Rxg4 {[%clk 0:00:05]}  Rc5 {[%clk 0:00:01]} 84. Rg3+ {[%clk 0:00:05]}  Kd4 {[%clk 0:00:02]} 85. Rg4+ {[%clk 0:00:05]}  Ke3 {[%clk 0:00:03]} 86. Rg3+ {[%clk 0:00:06]}  Ke2 {[%clk 0:00:03]} 87. Rxc3 {[%clk 0:00:05]}  Ra5 {[%clk 0:00:04]} 88. Rc4 {[%clk 0:00:05]}  Ke3 {[%clk 0:00:02]} 89. Rc3+ {[%clk 0:00:05]}  Kd4 {[%clk 0:00:03]} 90. Rd3+ {[%clk 0:00:05]}  Ke4 {[%clk 0:00:04]} 91. Rb3 {[%clk 0:00:04]}  Ra2+ {[%clk 0:00:04]} 92. Rb2 {[%clk 0:00:05]}  Ra8 {[%clk 0:00:05]} 93. Rb3 {[%clk 0:00:05]}  Rc8+ {[%clk 0:00:06]} 94. Rc3 {[%clk 0:00:06]}  Rh8 {[%clk 0:00:07]} 95. Rd3 {[%clk 0:00:05]}  Rh2+ {[%clk 0:00:08]} 96. Rd2 {[%clk 0:00:06]}  Rh1 {[%clk 0:00:09]} 97. Rd1 {[%clk 0:00:06]}  Rh6 {[%clk 0:00:09]} 98. Rd3 {[%clk 0:00:06]}  Ra6 {[%clk 0:00:07]} 99. Rb3 {[%clk 0:00:06]}  Kd4 {[%clk 0:00:07]} 100. Rb4+ {[%clk 0:00:06]}  Kc5 {[%clk 0:00:07]} 101. Rh4 {[%clk 0:00:06]}  Ra2+ {[%clk 0:00:07]} 102. Kb1 {[%clk 0:00:06]}  Rg2 {[%clk 0:00:08]} 103. Rh5+ {[%clk 0:00:06]}  Kc4 {[%clk 0:00:07]} 104. Rh4+ {[%clk 0:00:07]}  Kd3 {[%clk 0:00:08]} 105. Rh3+ {[%clk 0:00:07]}  Ke4 {[%clk 0:00:08]} 106. Rh4+ {[%clk 0:00:07]}  Kf5 {[%clk 0:00:09]} 107. Rh5+ {[%clk 0:00:07]}  Kg6 {[%clk 0:00:09]} 108. Rb5 {[%clk 0:00:08]}  Kf6 {[%clk 0:00:09]} 109. Rb6+ {[%clk 0:00:08]}  Ke5 {[%clk 0:00:09]} 110. Rb2 {[%clk 0:00:09]}  Kd4 {[%clk 0:00:10]} 111. Rxg2 {[%clk 0:00:09]}  Ke3 {[%clk 0:00:06]} 112. Rc2 {[%clk 0:00:08]}  Kf3 {[%clk 0:00:07]} 113. Kb2 {[%clk 0:00:09]}  Ke3 {[%clk 0:00:08]} 114. Kc3 {[%clk 0:00:10]}  Ke4 {[%clk 0:00:08]} 115. Rd2 {[%clk 0:00:11]}  Ke5 {[%clk 0:00:09]} 116. Rd3 {[%clk 0:00:11]}  Ke4 {[%clk 0:00:10]} 117. Kc4 {[%clk 0:00:12]}  Ke5 {[%clk 0:00:11]} 118. Rd4 {[%clk 0:00:13]}  Ke6 {[%clk 0:00:11]} 119. Rd5 {[%clk 0:00:13]}  Kf6 {[%clk 0:00:12]} 120. Kd4 {[%clk 0:00:14]}  Ke6 {[%clk 0:00:13]} 121. Ke4 {[%clk 0:00:13]}  Kf6 {[%clk 0:00:13]} 122. Rd6+ {[%clk 0:00:13]}  Ke7 {[%clk 0:00:13]} 123. Ke5 {[%clk 0:00:14]}  Kf7 {[%clk 0:00:14]} 124. Ra6 {[%clk 0:00:14]}  Ke7 {[%clk 0:00:15]} 125. Ra7+ {[%clk 0:00:15]}  Kd8 {[%clk 0:00:15]} 126. Kd6 {[%clk 0:00:15]}  Kc8 {[%clk 0:00:16]} 127. Rd7 {[%clk 0:00:14]}  Kb8 {[%clk 0:00:17]} 128. Rc7 {[%clk 0:00:15]}  Ka8 {[%clk 0:00:17]} 129. Kc6 {[%clk 0:00:15]}  Kb8 {[%clk 0:00:18]} 130. Kb6 {[%clk 0:00:15]} 1-0


[Site "https://www.chess.com"]

[Event "Titled Tuesday Blitz December 27 Early 2022"]
[White "Clawitter, Craig"]
[Black "Mitrovic, Darko R"]
[WhiteFideId "2023105"]
[BlackFideId "927023"]
[WhiteElo "2050"]
[BlackElo "2220"]
[Result "1-0"]
[Round "10"]
[TimeControl "180+2"]
[Date "2022.12.27"]
[WhiteClock "0:00:09"]
[BlackClock "0:00:06"]

1. e4 {[%clk 0:02:58]}  e6 {[%clk 0:02:59]} 2. d4 {[%clk 0:02:58]}  d5 {[%clk 0:02:59]} 3. e5 {[%clk 0:02:58]}  c5 {[%clk 0:02:59]} 4. c3 {[%clk 0:02:59]}  Bd7 {[%clk 0:02:58]} 5. Nf3 {[%clk 0:02:59]}  Qb6 {[%clk 0:02:59]} 6. Bd3 {[%clk 0:02:54]}  Bb5 {[%clk 0:02:58]} 7. dxc5 {[%clk 0:02:54]}  Bxc5 {[%clk 0:02:57]} 8. b4 {[%clk 0:02:55]}  Bf8 {[%clk 0:02:32]} 9. O-O {[%clk 0:02:39]}  Bxd3 {[%clk 0:02:27]} 10. Qxd3 {[%clk 0:02:40]}  Ne7 {[%clk 0:02:21]} 11. Be3 {[%clk 0:02:23]}  Qc7 {[%clk 0:02:16]} 12. Na3 {[%clk 0:02:21]}  Ng6 {[%clk 0:02:04]} 13. Nb5 {[%clk 0:02:12]}  Qd7 {[%clk 0:02:01]} 14. c4 {[%clk 0:02:03]}  Bxb4 {[%clk 0:01:47]} 15. cxd5 {[%clk 0:01:54]}  exd5 {[%clk 0:01:42]} 16. Qxd5 {[%clk 0:01:24]}  O-O {[%clk 0:01:39]} 17. Rfd1 {[%clk 0:01:13]}  Qxd5 {[%clk 0:01:34]} 18. Rxd5 {[%clk 0:01:13]}  Nc6 {[%clk 0:01:33]} 19. Rb1 {[%clk 0:01:04]}  Rad8 {[%clk 0:01:27]} 20. Rxd8 {[%clk 0:00:47]}  Rxd8 {[%clk 0:01:26]} 21. Nxa7 {[%clk 0:00:37]}  Nxa7 {[%clk 0:01:19]} 22. Bxa7 {[%clk 0:00:36]}  Bc3 {[%clk 0:01:01]} 23. g3 {[%clk 0:00:20]}  Nxe5 {[%clk 0:00:37]} 24. Nxe5 {[%clk 0:00:19]}  Bxe5 {[%clk 0:00:37]} 25. Rxb7 {[%clk 0:00:20]}  h5 {[%clk 0:00:33]} 26. h4 {[%clk 0:00:17]}  Rd2 {[%clk 0:00:26]} 27. a4 {[%clk 0:00:15]}  Ra2 {[%clk 0:00:22]} 28. Rb5 {[%clk 0:00:14]}  Rxa4 {[%clk 0:00:19]} 29. Rxe5 {[%clk 0:00:14]}  Rxa7 {[%clk 0:00:19]} 30. Rxh5 {[%clk 0:00:14]}  g6 {[%clk 0:00:18]} 31. Rd5 {[%clk 0:00:14]}  Kg7 {[%clk 0:00:18]} 32. Kg2 {[%clk 0:00:14]}  Ra3 {[%clk 0:00:19]} 33. h5 {[%clk 0:00:14]}  gxh5 {[%clk 0:00:18]} 34. Rxh5 {[%clk 0:00:14]}  Ra4 {[%clk 0:00:18]} 35. Rh4 {[%clk 0:00:13]}  Ra3 {[%clk 0:00:17]} 36. Rb4 {[%clk 0:00:13]}  Ra5 {[%clk 0:00:16]} 37. Rb6 {[%clk 0:00:13]}  Ra4 {[%clk 0:00:16]} 38. f4 {[%clk 0:00:13]}  Ra5 {[%clk 0:00:15]} 39. Kf3 {[%clk 0:00:13]}  Rc5 {[%clk 0:00:14]} 40. Kg4 {[%clk 0:00:13]}  Ra5 {[%clk 0:00:13]} 41. f5 {[%clk 0:00:13]}  Ra3 {[%clk 0:00:09]} 42. Kf4 {[%clk 0:00:11]}  Rc3 {[%clk 0:00:07]} 43. g4 {[%clk 0:00:11]}  Ra3 {[%clk 0:00:07]} 44. Kg5 {[%clk 0:00:10]}  Ra4 {[%clk 0:00:07]} 45. Rb7 {[%clk 0:00:10]}  Ra5 {[%clk 0:00:06]} 46. Kf4 {[%clk 0:00:09]} 1-0


[Site "https://www.chess.com"]